Cogmind - Beta 10.2 @@@ ROGUE MODE // 2022.01.12 @ 01:46:44 Player: Okkudo Result: Destroyed by as-18684 with Assembled Heavy Rifle Performance ------------- Evolutions (0) 0 Regions Visited (2) 400 Robots Destroyed (18) 90 Value Destroyed (317) 317 Prototype IDs (0) 0 Alien Tech Used (0) 0 Bonus (0) 0 TOTAL SCORE: 807 Bonus ------- None Cogmind --------- Core Integrity 0/250 Matter 219/300 Energy 100/100 System Corruption 1% Temperature Cool (0) Movement Treading (160) Location -10/Mines Parts ------- > --- POWER (1) -------- (None) > --- PROPULSION (2) --- Improved Treads > --- UTILITY (2) ------ Small Storage Unit Signal Interpreter > --- WEAPON (2) ------- (None) > --- INVENTORY (6) ---- Small Storage Unit Signal Interpreter Heavy Hammer Peak State ------------ > --- POWER ------------ Ion Engine > --- PROPULSION ------- Improved Treads Improved Treads > --- UTILITY ---------- Small Storage Unit Hardened Light Armor Plating > --- WEAPON ----------- Small Laser Light Assault Rifle > --- INVENTORY -------- Improved Treads Improved Treads Small Storage Unit Hardened Light Armor Plating Small Laser Heavy Hammer [Rating: 11] Favorites ----------- Power Ion Engine Engine Ion Engine Propulsion Improved Treads Treads Improved Treads Utility Small Storage Unit Device Tractor Beam Storage Small Storage Unit Processor Signal Interpreter Protection Hardened Light Armor Plating Weapon Light Assault Rifle Energy Gun Small Laser Ballistic Gun Light Assault Rifle Launcher Grenade Launcher Build | -11 -10 -10 ------- Run | Scr Mat Min Slots Evolved . | . . . Power . | . . . Propulsion . | . . . Utility . | . . . Weapon . | . . . Parts Attached 21 | 7 6 8 Power 2 | 1 . 1 Engine 2 | 1 . 1 Core . | . . . Reactor . | . . . Propulsion 6 | 2 2 2 Treads 6 | 2 2 2 Leg . | . . . Wheel . | . . . Hover . | . . . Flight . | . . . Utility 4 | 2 2 . Device 1 | 1 . . Storage 1 | 1 . . Processor 1 | . 1 . Hackware . | . . . Protection 1 | . 1 . Artifact . | . . . Weapon 9 | 2 2 5 Energy Gun 3 | 1 1 1 Energy Cannon . | . . . Ballistic Gun 4 | 1 1 2 Ballistic Cannon . | . . . Launcher 2 | . . 2 Special Weapon . | . . . Impact Weapon . | . . . Slashing Weapon . | . . . Piercing Weapon . | . . . Special Melee Weapon . | . . . Unidentified Prototypes . | . . . Parts Lost 10 | . 1 9 Power 2 | . . 2 Propulsion 3 | . . 3 Utility . | . . . Weapon 5 | . 1 4 Highest Loss Streak 3 | . 1 3 Average Slot Usage (%) 93 | . 99 76 Engine 10 | . 14 2 Treads 26 | . 28 22 Storage 14 | . 14 14 Processor 9 | . 7 14 Protection 3 | . 5 . Energy Gun 10 | . 13 3 Ballistic Gun 14 | . 14 14 Launcher 1 | . . 5 Naked Turns . | . . . Heaviest Build 16 | 12 16 11 Greatest Support 46 | 40 46 46 Greatest Overweight (x) 1 | 1 . . Average Overweight (x) . | . . . Largest Inventory Capacity 6 | 6 6 6 Average Capacity 5 | 5 6 6 Most Carried 6 | 4 6 6 Average Carried 5 | 1 5 5 Final Capacity 6 | 6 6 6 Final Carried 6 | 2 6 3 Class Distribution -------------------- 100% | Mutant Dominant Class ---------------- Mutant | -10/Materials Mutant | -10/Mines Resources | -11 -10 -10 ----------- Run | Scr Mat Min Matter Collected 451 | 255 142 54 Remotely 102 | 102 . . Salvage Created 543 | 95 372 76 Parts 32 | 2 22 8 Haulers Intercepted . | . . . Recyclers Shooed 2 | . 1 1 Parts Field Recycled . | . . . Retrieved Matter . | . . . Parts Self-Destructed . | . . . Prevented . | . . . Kills | -11 -10 -10 ------- Run | Scr Mat Min Combat Hostiles Destroyed 17 | . 8 9 Guns 13 | . 8 5 AOE 4 | . . 4 Classes Destroyed 5 | 1 3 1 Recycler 2 | 1 1 . Watcher 2 | . 2 . Swarmer 9 | . 3 6 Grunt 5 | . 5 . Assembled 3 | . . 3 Best Kill Streak 3 | 1 2 3 Combat Bots Only 3 | . 2 3 Max Kills in Single Turn 2 | 1 1 2 Gunslinging 1 | . . 1 Exploded 2 | . . 2 Melee . | . . . Uniques/NPCs Destroyed . | . . . Combat | -11 -10 -10 -------- Run | Scr Mat Min Damage Taken 1379 | . 571 808 Core 250 | . 87 163 Absorbed by Shields . | . . . Core Remaining (%) 100 | 100 . . Volleys Fired 122 | 2 79 41 Largest 2 | 2 2 2 Hottest 70 | 60 60 70 Shots Fired 206 | 4 147 55 Gun 201 | 4 147 50 Cannon . | . . . Launcher 5 | . . 5 Special . | . . . Kinetic 125 | 2 79 44 Thermal 76 | 2 68 6 Explosive 5 | . . 5 Electromagnetic . | . . . Robot Hit Streak 14 | 4 8 14 Robot Miss Streak 5 | . 5 3 Penetration Max . | . . . Secondary Targets 2 | . 1 1 Max Gunslinging Chain 1 | . 1 1 Shots Hit Robots 126 | 4 87 35 Core Hits 42 | 2 24 16 Critical Hits . | . . . Critical Kills . | . . . Critical Parts Destroyed . | . . . Melee Attacks . | . . . Impact . | . . . Slashing . | . . . Piercing . | . . . Sneak Attacks . | . . . Combat Hostiles . | . . . Follow-up Attacks . | . . . Damage Inflicted 1370 | 42 847 481 Guns 1117 | 42 842 233 Cannons . | . . . Explosions 248 | . . 248 Melee . | . . . Ramming 5 | . 5 . Kinetic 582 | 20 374 188 Thermal 535 | 22 468 45 Explosive 248 | . . 248 Electromagnetic . | . . . Impact . | . . . Slashing . | . . . Piercing . | . . . Highest Corruption 1 | . 1 1 Average Corruption 1 | . 1 1 Corruption Purged . | . . . Effects 4 | . 2 2 Message Errors 1 | . 1 . Energy Discharges 1 | . . 1 Data Loss (minor) 1 | . . 1 Targeting Errors 1 | . 1 . Overload Shots . | . . . Overflow Damage 6 | . . 6 Projectiles . | . . . Explosions 6 | . . 6 Melee . | . . . Knockbacks . | . . . Impact . | . . . Kinetic . | . . . Secondary . | . . . Self-Inflicted Damage 39 | . . 39 Shots 1 | . . 1 Rammed 2 | . 2 . Targets Rammed 2 | . 2 . Kicked . | . . . Crushed . | . . . Highest Temperature 120 | 20 120 30 Average Temperature 36 | 12 38 12 Received Heat Transfer 232 | . 192 40 Siege Activations . | . . . Robots Corrupted . | . . . Combat Hostiles . | . . . Parts Fried . | . . . Impact Corruptions . | . . . Robots Melted . | . . . Combat Hostiles . | . . . Parts Melted 1 | . 1 . Heat Transferred 1212 | 50 1050 112 Parts Sabotaged . | . . . Parts Stolen . | . . . Parts Stripped . | . . . Power Chain Reactions . | . . . Missiles Intercepted . | . . . Alert | -11 -10 -10 ------- Run | Scr Mat Min Peak Influence 159 | 5 100 159 Initial 39 | . 3 39 Average 62 | 3 46 111 Maximum Alert Level . | . . . Low Security (%) 100 | 100 100 100 Level 1 . | . . . Level 2 . | . . . Level 3 . | . . . Level 4 . | . . . Level 5 . | . . . High Security . | . . . Max Security . | . . . Squads Dispatched 2 | . 2 . Investigation . | . . . Extermination . | . . . Reinforcement 2 | . 2 . Assault . | . . . Garrison . | . . . Intercept . | . . . Construction Impeded . | . . . Haulers Reinforced . | . . . Stealth | -11 -10 -10 --------- Run | Scr Mat Min Distress Signals . | . . . Communications Jammed . | . . . Distress Signals . | . . . Times Spotted 33 | . 19 14 Peak Tracking Total 3 | . 3 3 Tactical Retreats . | . . . Traps | -11 -10 -10 ------- Run | Scr Mat Min Traps Triggered 1 | . 1 . Indirectly . | . . . Trap Hack Attempts . | . . . Triggered . | . . . Disarmed . | . . . Reprogrammed . | . . . Reused . | . . . Traps Extracted . | . . . Installed . | . . . Triggered . | . . . Machines | -11 -10 -10 ---------- Run | Scr Mat Min Machines Disabled . | . . . Max in Single Turn . | . . . Machines Sabotaged . | . . . Garrisons Compromised . | . . . Overloaded Fab Kills . | . . . Fab Network Shutdowns . | . . . Hacking | -11 -10 -10 --------- Run | Scr Mat Min Machines Accessed 2 | . 2 . Terminals 2 | . 2 . Fabricators . | . . . Repair Stations . | . . . Recycling Units . | . . . Scanalyzers . | . . . Garrison Access . | . . . Total Hacks 7 | . 7 . Successful 3 | . 3 . Failed 4 | . 4 . Catastrophic . | . . . Database Lockouts . | . . . Manual 5 | . 5 . Terminals 7 | . 7 . Fabricators . | . . . Repair Stations . | . . . Recycling Units . | . . . Scanalyzers . | . . . Garrison Access . | . . . Terminal Hacks 3 | . 3 . Branch Access Points 1 | . 1 . Alert Level 1 | . 1 . Unreport Threat 1 | . 1 . Fabricator Hacks . | . . . Repair Station Hacks . | . . . Recycling Unit Hacks . | . . . Scanalyzer . | . . . Garrison Access Hacks . | . . . Unauthorized Hacks . | . . . Terminals . | . . . Fabricators . | . . . Repair Stations . | . . . Recycling Units . | . . . Scanalyzers . | . . . Garrison Access . | . . . Data Cores Recovered . | . . . Used . | . . . Hacking Detections 1 | . 1 . Full Trace Events 1 | . 1 . Feedback Events 1 | . 1 . Corruption 1 | . 1 . Feedback Blocked . | . . . Robot Schematics Acquired . | . . . Robots Built . | . . . Matter . | . . . Time . | . . . Total Robot Build Rating . | . . . Part Schematics Acquired . | . . . Parts Built . | . . . Matter . | . . . Time . | . . . Total Part Build Rating . | . . . Parts Repaired . | . . . Time . | . . . Parts Recycled . | . . . Recycled Matter . | . . . Retrieved Matter . | . . . Retrieved Components . | . . . Parts Scanalyzed . | . . . Part Schematics Acquired . | . . . Parts Damaged . | . . . Bothacking | -11 -10 -10 ------------ Run | Scr Mat Min Used RIF Installer . | . . . Robots Hacked . | . . . Non-combat . | . . . Combat . | . . . Robot Hacks Applied . | . . . Relay Couplers Released . | . . . Robots Rewired . | . . . Allies Hacked . | . . . Hacks Repelled . | . . . Allies | -11 -10 -10 -------- Run | Scr Mat Min Total Allies . | . . . Largest Group . | . . . Highest-Rated Group . | . . . Highest-Rated Ally . | . . . Total Orders . | . . . Ally Attacks . | . . . Total Damage . | . . . Kills . | . . . Allies Corrupted . | . . . Allies Melted . | . . . Intel | -11 -10 -10 ------- Run | Scr Mat Min Robot Analysis Total . | . . . Derelict Logs Recovered 1 | . . 1 Drone Launches . | . . . Drone Recoveries . | . . . Exploration | -11 -10 -10 ------------- Run | Scr Mat Min Turns Passed 1510 | 68 1026 416 Spaces Moved 711 | 41 482 188 Core 16 | 16 . . Treads 695 | 25 482 188 Legs . | . . . Wheels . | . . . Hover . | . . . Flight . | . . . Fastest Speed 50 | 50 160 160 Average Speed 157 | 118 160 160 Slowest Speed 160 | 160 160 160 Overloaded Moves . | . . . Propulsion Burnouts . | . . . Robots Hopped . | . . . Cave-ins Triggered . | . . . Exploration Rate (%) 32 | 3 67 28 Regions Visited 2 Branch Regions 1 Pre-discovered Areas . | . . . Known Exits Taken 1 | . 1 . Unknown Exits Taken 1 | 1 . . Scrap Searched . | . . . Spaces Dug 18 | . . 18 Terrain Destroyed 41 | . . 41 Melee . | . . . Projectile . | . . . AOE 41 | . . 41 Terrain Rammed . | . . . Walls Destroyed . | . . . Machines Disabled . | . . . Actions | -11 -10 -10 --------- Run | Scr Mat Min Total 922 | 57 608 257 Wait 38 | . 22 16 Move 709 | 40 481 188 Hop . | . . . Pick Up 21 | 8 11 2 Fast Attach 2 | 1 . 1 Attach 16 | 6 5 5 Detach . | . . . Swap 3 | . 1 2 Drop 9 | . 7 2 Fire 122 | 2 79 41 Melee . | . . . Ram . | . . . Kick . | . . . Crush 2 | . 2 . Escape Stasis . | . . . Rewire . | . . . Trap . | . . . Miscellaneous . | . . . Route ------- -11/Scrapyard -10/Materials (discovered 3 exits: *Mat x2 / *Min) -10/Mines (discovered 2 exits: *Mat x2) History --------- Turn | Location | Event 5 | -11/Scrapyard | Discovered new exit (range 15) 69 | -11/Scrapyard | Entered Materials 313 | -10/Materials | Build established: Mutant 776 | -10/Materials | Discovered new exit (range 4) 789 | -10/Materials | Discovered new exit (range 16) 962 | -10/Materials | Discovered new exit (range 16) 985 | -10/Materials | Identified exit to Mines 1095 | -10/Materials | Entered Mines 1165 | -10/Mines | Learned Materials emergency access door positions 1166 | -10/Mines | YI-UF0 nonchalantly dropped a Grenade Launcher on the ground 1259 | -10/Mines | Core integrity fell below 50% 1309 | -10/Mines | Discovered new exit (range 6) 1317 | -10/Mines | Identified exit to Materials 1321 | -10/Mines | Assembled infested the area 1374 | -10/Mines | Discovered exit to Materials (range 7) 1378 | -10/Mines | Lost 3 parts (1p1n1w) 1429 | -10/Mines | Core integrity fell below 20% 1511 | -10/Mines | Destroyed by as-18684 with Assembled Heavy Rifle Last Messages --------------- 01473_ Acquired 11 matter. 01473_ U-05 Engineer lays Concrete. 01474_ K-01 Serf collects debris. 01474_ Acquired 2 matter. 01475_ U-05 Engineer builds a Wall. 01478_ K-01 Serf collects debris. 01480_ U-05 Engineer lays Concrete. 01481_ The unstable cave ceiling collapses. 01481_ U-05 Engineer builds a Wall. 01481_ U-05 Engineer lays Concrete. 01481_ K-01 Serf collects debris. 01482_ YI-UF0 mumbles something. 01483_ U-05 Engineer lays Concrete. 01485_ U-05 Engineer builds a Wall. 01486_ K-01 Serf collects debris. 01487_ U-05 Engineer lays Concrete. 01490_ K-01 Serf collects debris. 01494_ The unstable cave ceiling collapses. 01494_ U-05 Engineer builds a Wall. 01507_ Lgt. Assault Rifle destroyed. Map ----- +----------------------------------------------------+ | ?????????????????????????????????????????????????? | | ?????????????????????????????????????????????????? | | ?????????????????????????????????????????????????? | | ?????????????????????????????????????????????????? | | ?????????????????????????????????????????????????? | | ?????????????????????????????????????????????????? | | ?????????????????????????????????????????????????? | | ??????????????#########??????????????????????????? | | ??????????##### #??????????????????????????? | | ??????????# #??????????????????????????? | | ??????##### ### #??????????????????????????? | | ??????# #?# #??????????????????????????? | | ??????# #####?# < #??????????????????????????? | | ??????# # #### #??????????????????????????? | | ?????## ###############??????????????????????????? | | ?????## # ## ##????????????????????????????????? | | ?????## ### ##??#######??????????????????????? | | ?????# < #### ###?????????????????????? | | ?##### =## u #?????????????????????? | | ?# ### #?????????????????????? | | ?# # ###### #?????????????????????? | | ?# #### # ###???##### ##?????????????????????? | | ?# #??#######?????????# ##?????????????????????? | | ?# #??????????????????# #??????????????????????? | | ?# ######?????????????# #??????????????????????? | | ?# = #?????????????# @#### ! ! ????????? | | ?# ##?########????# aa% =%=%| ????????? | | ?# ##?# #????# ????????? | | ### = ### #????####### #???????????? | | # # #???????????? ###???????????? | | ## # ## # #?????????????? ##?????????????? | | ?## #?# # #########???????#??????????????? | | ??### % ### # ?????????????????????? | | ##### ## ?????????????????????? | | ## #### #???????????????????????????? | | ### #???????????????????????????? | | # #???????????????????????????? | | # ## ## #???????????????????????????? | | # ### ## #???????????????????????????? | | # ## ## #???????????????????????????? | | #### ##### ### #???????????????????????????? | | ???# #???## ######?# #???????????????????????????? | | #### ##???# ?????# #???????????????????????????? | | #???### ????# #???????????????????????????? | | #?????? ##??## ######??????????????????????? | | #???????#???# ## [%##?????? ???????? | | """ #???????????# %==### ???????? | | """ #???????????# =% #??????????????? | | """ #???????????## ##??????????????? | | #######????????????## #####???????????????? | +----------------------------------------------------+ Best States ------------- Heat Dissipation 25 Energy Generation 10 Energy Capacity 250 Matter Stores 300 Matter Capacity 300 Sight Range 16 Terrain Scan Density 10 Armor Coverage 150 Evasion (%) 50 Recoil Reduction 2 Item Schematics ----------------- None Robot Schematics ------------------ None Fabricated ------------ Nothing Alien Tech Used ----------------- None Achievements -------------- None Challenges ------------ None Game ------ Seed SingularityPointyFlakker Manual? 0 Play Time 00:16:17 Cumulative 26.2 hours Start 2022.01.12 @ 01:21:16 End 2022.01.12 @ 01:46:44 Sessions 1 Manual Loads 0 Difficulty Rogue Special Mode None Game No. 55 Rogue 55 Adventurer 0 Explorer 0 Win Type - Total 0 Types 0/0/0/0/0/0/0/0/0 Lore% 21 Gallery% 21 Achievement% 17 Wizard Run 0 Options --------- ASCII 0 Keyboard 0 Movement Mouse Keybinds 0 Fullscreen 1 Font 12/Terminus Map View 83x54 Tactical HUD 1 Map Filters NONE Filters NONE Steam 1 RUN: f9b59c26-8d63-42c8-98d8-d45ec55f7b3e